bitfinex-derivatives/quotes_BTCF0:USTF0_20260214
["timestamp","ask_amount","ask_price","bid_price","bid_amount"]
[1771058600159,0.028789,69725.0,69717.0,0.01444]
[1771058601369,0.01435,69721.0,69703.0,0.3419973]
[1771058601564,0.014351,69718.0,69708.0,0.014353]
[1771058601765,0.014351,69718.0,69709.0,0.01444]
[1771058602071,0.014351,69718.0,69708.0,0.01444]
[1771058602072,0.014351,69716.0,69708.0,0.01444]
[1771058602670,0.014352,69715.0,69708.0,0.01444]
[1771058602869,0.028791,69719.0,69709.0,0.014353]
[1771058603063,0.014351,69718.0,69708.0,0.028793]
[1771058603267,0.014351,69717.0,69708.0,0.028793]
[1771058603670,0.014351,69718.0,69708.0,0.028793]
[1771058603966,0.028791,69719.0,69708.0,0.028793]
[1771058604161,0.01444,69718.0,69711.0,0.014352]
[1771058604370,0.01444,69718.0,69708.0,0.028793]
[1771058604563,0.01444,69718.0,69708.0,0.01444]
[1771058604769,0.014351,69717.0,69708.0,0.028793]
[1771058605065,0.014351,69717.0,69708.0,0.01444]
[1771058605269,0.01444,69718.0,69708.0,0.01444]
[1771058605468,0.01444,69718.0,69710.0,0.014352]
[1771058605669,0.01444,69718.0,69712.0,0.014352]
[1771058605969,0.01444,69718.0,69710.0,0.014352]
[1771058607572,0.01444,69718.0,69711.0,0.014352]
[1771058607778,0.01444,69717.0,69710.0,0.014352]
[1771058608479,0.01444,69717.0,69711.0,0.014352]
[1771058608778,0.01444,69717.0,69712.0,0.014352]
[1771058608982,0.014349,69727.0,69716.0,0.014351]
[1771058609279,0.172309,69725.0,69716.0,0.014351]
[1771058609780,0.014348,69734.0,69716.0,0.014351]
[1771058609781,0.01444,69724.0,69716.0,0.014351]
[1771058609980,0.01444,69724.0,69715.0,0.014352]
[1771058610183,0.01444,69725.0,69716.0,0.014351]
[1771058610381,8.7e-05,69725.0,69717.0,0.014351]
[1771058610881,0.01435,69724.0,69715.0,0.014351]
[1771058611576,0.02879,69724.0,69715.0,0.014351]
[1771058611975,0.02879,69724.0,69716.0,0.01444]
[1771058612775,0.01444,69724.0,69716.0,0.028791]
[1771058614379,0.014352,69714.0,69697.0,0.028795]
[1771058614573,0.014352,69715.0,69698.0,0.32390072]
[1771058614779,0.014352,69715.0,69707.0,0.014353]
[1771058615379,0.014352,69715.0,69706.0,0.014353]
[1771058615681,0.01444,69714.0,69706.0,0.014353]
[1771058616078,0.028792,69714.0,69706.0,0.014353]
[1771058616279,0.01444,69714.0,69707.0,0.014353]
[1771058616785,0.01444,69714.0,69711.0,0.014352]
[1771058616972,0.01444,69714.0,69710.0,0.014352]
[1771058617175,0.014351,69718.0,69711.0,0.014352]
[1771058617380,0.35803604,69728.0,69708.0,0.32390072]
[1771058617582,0.014348,69732.0,69693.0,0.717818]
[1771058617583,0.014349,69726.0,69717.0,0.014351]
[1771058617785,0.01444,69725.0,69716.0,0.33825172]
[1771058618192,0.01444,69725.0,69717.0,0.014351]
[1771058618889,0.01435,69724.0,69716.0,0.014351]
[1771058619295,0.01435,69724.0,69715.0,0.01444]
[1771058619486,0.01444,69725.0,69715.0,0.028791]
[1771058619682,0.01444,69725.0,69716.0,0.014351]
[1771058620181,0.14352,69729.0,69715.0,0.01444]
[1771058620182,0.14352,69729.0,69718.0,0.34090348]
[1771058620394,0.15796,69729.0,69721.0,0.01435]
[1771058620587,0.15796,69729.0,69723.0,0.01435]
[1771058620787,0.15796,69729.0,69722.0,0.01435]
[1771058621092,0.15796,69729.0,69727.0,0.014349]
[1771058621387,0.014347,69738.0,69727.0,0.014349]
[1771058621687,0.33765945,69737.0,69694.0,0.03554091]
[1771058621884,0.32321945,69717.0,69704.0,0.014354]
[1771058622083,0.01444,69716.0,69707.0,0.014353]
[1771058622288,0.014352,69714.0,69703.0,0.01444]
[1771058622683,0.01444,69716.0,69703.0,0.01444]
[1771058622879,0.028791,69716.0,69704.0,0.014354]
[1771058623083,0.028791,69716.0,69703.0,0.01444]
[1771058623084,0.014352,69715.0,69703.0,0.01444]
[1771058623294,0.028791,69716.0,69703.0,0.028794]
[1771058623484,0.014352,69715.0,69703.0,0.028794]
[1771058623881,0.014352,69714.0,69703.0,0.028794]
[1771058625385,0.33757145,69714.0,69703.0,0.01444]
[1771058625584,0.33757145,69713.0,69703.0,0.01444]
[1771058625788,0.32321945,69713.0,69703.0,0.01444]
[1771058626091,0.014352,69713.0,69703.0,0.01444]
[1771058626592,0.014352,69712.0,69703.0,0.01444]
[1771058626887,0.028792,69712.0,69704.0,0.01444]
[1771058627291,0.014352,69713.0,69704.0,0.01444]
[1771058627492,0.014352,69712.0,69704.0,0.01444]
[1771058628587,0.014352,69711.0,69704.0,0.01444]
[1771058628786,0.014353,69709.0,69704.0,0.01444]
[1771058628990,0.014353,69709.0,69705.0,3e-08]
[1771058629188,0.014353,69708.0,69705.0,3e-08]
[1771058629494,0.014353,69708.0,69705.0,0.01444]
[1771058629895,0.014353,69708.0,69702.0,0.01444]
[1771058630092,0.014354,69705.0,69699.0,0.14352]
[1771058630287,0.014355,69698.0,69688.0,0.014357]
[1771058630596,0.014355,69699.0,69689.0,0.014357]
[1771058630988,0.014354,69702.0,69690.0,0.014357]
[1771058631291,0.014354,69701.0,69692.0,0.014356]
[1771058631590,0.028794,69704.0,69693.0,0.01444]
[1771058631797,0.028794,69704.0,69694.0,0.34090848]
[1771058631998,0.01444,69704.0,69695.0,0.014356]
[1771058633397,0.01444,69704.0,69693.0,0.01444]
[1771058633398,0.014354,69703.0,69693.0,0.01444]
[1771058633591,0.014354,69703.0,69693.0,0.028796]
[1771058634296,0.028794,69704.0,69693.0,0.028796]
[1771058635498,0.32321945,69703.0,69678.0,0.32655248]
[1771058635690,0.014356,69693.0,69673.0,0.32655248]
[1771058635886,0.014357,69689.0,69675.0,0.01436]
[1771058636096,0.014357,69689.0,69676.0,0.0288]
[1771058636399,0.014357,69689.0,69676.0,0.17236]
[1771058636598,0.00016091,69688.0,69677.0,0.014359]
[1771058637194,0.00016091,69688.0,69676.0,0.17236]
[1771058638498,0.01451791,69688.0,69676.0,0.17236]
[1771058639305,0.014357,69687.0,69676.0,0.158]
[1771058641199,0.014358,69686.0,69676.0,0.158]
[1771058641600,0.014359,69681.0,69676.0,0.158]
[1771058642301,0.014358,69685.0,69676.0,0.158]
[1771058642302,0.014359,69680.0,69676.0,0.1491133]
[1771058642505,0.014359,69680.0,69676.0,0.0144403]
[1771058642707,0.014359,69680.0,69669.0,0.014361]
[1771058642708,0.014359,69679.0,69675.0,0.01444]
[1771058643403,0.014359,69678.0,69675.0,0.01444]
[1771058645105,0.014359,69679.0,69675.0,0.01444]
[1771058646505,0.014358,69684.0,69675.0,0.01444]
[1771058648509,0.014358,69684.0,69675.0,0.0288]
[1771058648709,0.014358,69684.0,69675.0,0.04316]
[1771058649212,0.014358,69684.0,69676.0,0.01436]
[1771058650708,0.014358,69684.0,69677.0,0.014359]
[1771058653516,0.014358,69683.0,69676.0,0.01436]
[1771058653915,0.01436,69677.0,69669.0,0.014361]
[1771058654216,0.34782807,69678.0,69669.0,0.043162]
[1771058654414,0.33346907,69678.0,69670.0,0.014361]
[1771058654614,0.014359,69679.0,69670.0,0.014361]
[1771058654815,0.014359,69679.0,69671.0,0.01436]
[1771058655709,0.014359,69679.0,69669.0,0.01444]
[1771058656016,0.014359,69679.0,69670.0,0.014361]
[1771058656210,0.014359,69679.0,69669.0,0.01444]
[1771058656211,0.014359,69680.0,69669.0,0.028801]
[1771058656415,0.014359,69679.0,69670.0,0.014361]
[1771058656715,0.34782807,69679.0,69670.0,0.014361]
[1771058656920,0.33346907,69679.0,69670.0,0.014361]
[1771058657416,0.33346907,69679.0,69671.0,0.01436]
[1771058657616,0.014359,69680.0,69671.0,0.01436]
[1771058658519,0.014359,69679.0,69669.0,0.01444]
[1771058659515,0.01444,69681.0,69670.0,0.014361]
[1771058659722,0.028799,69681.0,69669.0,0.028801]
[1771058659915,0.014359,69681.0,69669.0,0.028801]
[1771058660116,0.014359,69680.0,69669.0,0.028801]
[1771058660623,0.014359,69678.0,69669.0,0.01444]
[1771058661117,0.014359,69681.0,69669.0,0.01444]
[1771058661621,0.01436,69676.0,69669.0,0.01444]
[1771058661814,0.014359,69677.0,69669.0,0.028801]
[1771058662014,0.014359,69679.0,69669.0,0.028801]
[1771058662214,0.014359,69678.0,69670.0,0.014361]
[1771058662410,0.014359,69679.0,69670.0,0.028722]
[1771058662614,0.01444,69684.0,69670.0,0.47797572]
[1771058662814,0.014359,69678.0,69670.0,0.46361472]
[1771058663015,0.014359,69679.0,69670.0,0.47797572]
[1771058663316,0.014359,69679.0,69671.0,0.014361]
[1771058663617,0.014359,69678.0,69670.0,0.46361472]
[1771058663823,0.014359,69680.0,69671.0,0.01436]
[1771058664019,0.014359,69679.0,69671.0,0.01436]
[1771058664214,0.014359,69680.0,69671.0,0.01436]
[1771058664421,0.014359,69679.0,69670.0,0.157961]
[1771058664926,0.014359,69678.0,69670.0,0.157961]
[1771058666221,0.014359,69679.0,69670.0,0.157961]
[1771058666630,0.014359,69679.0,69671.0,0.01436]
[1771058666920,0.014359,69680.0,69671.0,0.01436]
[1771058667421,0.028718,69679.0,69670.0,0.157961]
[1771058668217,0.014359,69679.0,69670.0,0.157961]
[1771058668727,0.014359,69680.0,69670.0,0.157961]
[1771058668929,0.014359,69680.0,69671.0,0.01436]
[1771058669218,0.014359,69679.0,69671.0,0.014361]
[1771058670516,0.014359,69680.0,69672.0,0.01436]
[1771058670716,0.014359,69681.0,69673.0,0.0288]
[1771058670918,0.00016091,69688.0,69682.0,0.014358]
[1771058671223,0.014357,69690.0,69682.0,0.01444]
[1771058671427,0.014357,69689.0,69682.0,0.01444]
[1771058672715,0.014357,69689.0,69682.0,0.028798]
[1771058672929,0.014357,69690.0,69682.0,0.028798]
[1771058673522,0.01444,69691.0,69683.0,0.014358]
[1771058674129,0.014357,69689.0,69682.0,0.01444]
[1771058674621,0.01444,69691.0,69682.0,0.01444]
[1771058674822,0.01444,69691.0,69685.0,0.014358]
[1771058675727,0.01444,69691.0,69684.0,0.014358]
[1771058676527,0.01444,69691.0,69685.0,0.014358]
[1771058677415,0.01444,69691.0,69684.0,0.014358]
[1771058680325,0.01444,69694.0,69687.0,0.014357]
[1771058680530,0.014356,69693.0,69686.0,0.014357]
[1771058680721,0.1436,69699.0,69686.0,0.014357]
[1771058680722,0.014354,69703.0,69695.0,0.014356]
[1771058680924,0.014353,69706.0,69698.0,0.014355]
[1771058681123,0.014353,69706.0,69699.0,0.014355]
[1771058681320,0.014353,69708.0,69700.0,0.014355]
[1771058681525,0.014353,69708.0,69699.0,0.014355]
[1771058681526,0.028793,69707.0,69699.0,0.014355]
[1771058681830,0.014354,69702.0,69700.0,0.01444]
[1771058682730,0.014354,69702.0,69695.0,0.014356]
[1771058682927,0.014354,69702.0,69696.0,0.01444]
[1771058683727,0.014354,69704.0,69696.0,0.028795]
[1771058683928,0.014354,69705.0,69697.0,0.014355]
[1771058684130,0.014354,69705.0,69696.0,0.028795]
[1771058684431,0.014354,69703.0,69696.0,0.01444]
[1771058685227,0.01444,69708.0,69696.0,0.01444]
[1771058685427,0.014353,69706.0,69698.0,0.014355]
[1771058686030,0.014353,69707.0,69698.0,0.014355]
[1771058686224,0.014354,69706.0,69698.0,0.014355]
[1771058687729,0.014353,69707.0,69698.0,0.014355]
[1771058688729,0.014354,69706.0,69698.0,0.014355]
[1771058689735,0.014354,69706.0,69697.0,0.014355]
[1771058689736,0.014354,69705.0,69697.0,0.014355]
[1771058690333,0.014354,69702.0,69696.0,0.01444]
[1771058693326,0.014354,69703.0,69696.0,0.01444]
[1771058693832,0.014354,69705.0,69697.0,0.014355]
[1771058694031,0.028708,69705.0,69697.0,0.014355]
[1771058694227,0.014354,69704.0,69696.0,0.028795]
[1771058696539,0.014354,69705.0,69696.0,0.028795]
[1771058696540,0.014354,69703.0,69696.0,0.028795]
[1771058698240,0.014354,69703.0,69696.0,0.01444]
[1771058699237,0.014354,69705.0,69696.0,0.01444]
[1771058699437,0.014355,69701.0,69696.0,0.01444]
[1771058699642,0.014355,69699.0,69696.0,0.01444]
[1771058699842,0.014355,69698.0,69696.0,0.01444]
[1771058700145,0.014355,69698.0,69695.0,0.14361213]
[1771058702439,0.014355,69700.0,69695.0,0.14361213]
[1771058702440,0.014355,69699.0,69695.0,0.14361213]
[1771058703741,0.014355,69700.0,69695.0,0.14361213]
[1771058703943,0.01444,69704.0,69696.0,0.014355]
[1771058704446,0.014354,69703.0,69696.0,0.014355]
[1771058704647,0.01444,69706.0,69698.0,0.014355]
[1771058704844,0.01444,69708.0,69704.0,0.33878157]
[1771058705049,0.01444,69709.0,69702.0,0.014354]
[1771058705249,0.01444,69709.0,69701.0,0.014354]
[1771058705250,0.014351,69717.0,69708.0,0.014353]
[1771058705447,0.014351,69719.0,69707.0,0.014353]
[1771058705746,0.014352,69713.0,69706.0,0.01444]
[1771058706042,0.15791,69720.0,69706.0,0.028793]
[1771058706243,0.014352,69715.0,69707.0,0.014353]
[1771058706449,0.014351,69716.0,69707.0,0.014353]
[1771058706645,0.014351,69716.0,69708.0,0.014353]
[1771058706844,0.01444,69719.0,69711.0,0.014352]
[1771058707038,0.01444,69719.0,69709.0,0.01444]
[1771058707039,0.014349,69727.0,69710.0,0.014353]
[1771058707253,0.014349,69725.0,69716.0,0.014351]
[1771058707544,0.028789,69725.0,69716.0,0.01444]
[1771058707749,0.33493246,69719.0,69708.0,0.14356]
[1771058707950,0.014352,69713.0,69708.0,0.14356]
[1771058708150,0.014353,69710.0,69709.0,0.01444]
[1771058708350,0.014353,69710.0,69698.0,0.33878157]
[1771058708351,0.01444,69728.0,69713.0,0.33878157]
[1771058708550,0.014349,69726.0,69717.0,0.014351]
[1771058708850,0.01435,69725.0,69717.0,0.014351]
[1771058709048,0.014348,69731.0,69718.0,0.014351]
[1771058709350,0.014349,69729.0,69719.0,0.014351]
[1771058709545,0.014349,69729.0,69720.0,0.02879]
[1771058709751,0.001,69726.0,69720.0,0.01444]
[1771058709950,0.028789,69728.0,69720.0,0.01444]
[1771058710459,0.014349,69727.0,69720.0,0.01444]
[1771058710845,0.028789,69728.0,69720.0,0.01444]
[1771058711040,0.01444,69728.0,69720.0,0.01444]
[1771058711248,0.01435,69722.0,69720.0,0.01444]
[1771058711952,0.33493246,69722.0,69716.0,0.01444]
[1771058712152,0.01435,69721.0,69716.0,0.01444]
[1771058712548,0.01435,69720.0,69714.0,0.072221]
[1771058713155,0.01435,69721.0,69714.0,0.072221]
[1771058713343,0.01444,69723.0,69716.0,0.35313257]
[1771058714352,0.01444,69723.0,69717.0,0.35322157]
[1771058714552,0.028789,69727.0,69719.0,0.33878157]
[1771058714752,0.01435,69725.0,69719.0,0.33878157]
[1771058714954,0.028789,69727.0,69719.0,0.35313257]
[1771058714955,0.01444,69727.0,69719.0,0.35313257]
[1771058715153,0.01444,69727.0,69719.0,0.33878157]
[1771058715449,0.014349,69729.0,69721.0,0.33878157]
[1771058715653,0.014346,69741.0,69723.0,0.33878157]
[1771058715948,0.014347,69736.0,69727.0,0.014349]
[1771058716152,0.028787,69736.0,69728.0,0.01444]
[1771058716344,0.014348,69731.0,69728.0,0.01444]
[1771058716544,0.014348,69730.0,69728.0,0.01444]
[1771058716747,0.014348,69732.0,69728.0,0.01444]
[1771058717146,0.014347,69735.0,69728.0,0.01444]
[1771058717352,0.0145228,69746.0,69735.0,0.33878157]
[1771058717548,0.014346,69741.0,69736.0,0.01444]
[1771058717851,0.014346,69740.0,69736.0,0.01444]
[1771058718051,0.014347,69736.0,69734.0,0.01444]
[1771058718256,0.014347,69736.0,69731.0,0.01444]
[1771058718453,0.014346,69740.0,69731.0,0.01444]
[1771058718659,0.014347,69739.0,69731.0,0.028788]
[1771058719158,0.014346,69741.0,69732.0,0.014348]
[1771058719361,0.01444,69743.0,69732.0,0.014348]
[1771058719362,0.01444,69740.0,69734.0,0.014347]
[1771058719557,0.014346,69743.0,69734.0,0.01444]
[1771058719558,0.014346,69742.0,69734.0,0.01444]
[1771058719863,0.014346,69742.0,69734.0,0.028788]
[1771058720064,0.014346,69742.0,69734.0,0.01444]
[1771058720564,0.028786,69743.0,69734.0,0.36756957]
[1771058720763,0.0145228,69746.0,69737.0,0.014347]
[1771058720965,0.0145228,69746.0,69738.0,0.01444]
[1771058721267,0.0001778,69746.0,69740.0,0.014346]
[1771058721464,0.15816483,69751.0,69741.0,0.01444]
[1771058721465,0.01444,69750.0,69741.0,0.01444]
[1771058721765,0.028784,69750.0,69741.0,0.028786]
[1771058722152,0.028784,69750.0,69741.0,0.01444]
[1771058722355,0.014346,69744.0,69735.0,0.014347]
[1771058722560,0.014346,69744.0,69736.0,0.01444]
[1771058722762,0.014344,69750.0,69736.0,0.36756857]
[1771058722962,0.014344,69750.0,69741.0,0.014346]
[1771058723864,0.01444,69749.0,69741.0,0.014346]
[1771058724466,0.014345,69747.0,69740.0,0.01444]
[1771058724666,0.00026083,69751.0,69741.0,0.33878157]
[1771058724864,0.01460483,69751.0,69740.0,0.01444]
[1771058725061,0.014345,69747.0,69740.0,0.01444]
[1771058725370,0.014345,69746.0,69740.0,0.01444]
[1771058725774,0.33519329,69751.0,69740.0,0.01444]
[1771058725977,0.014346,69741.0,69737.0,0.01444]
[1771058726175,0.014346,69741.0,69731.0,0.14352]
[1771058726478,0.014347,69737.0,69732.0,0.01444]
[1771058726675,0.014347,69738.0,69732.0,0.01444]
[1771058727077,0.01444,69741.0,69732.0,0.01444]
[1771058727280,0.01444,69741.0,69733.0,0.014348]
[1771058727575,0.014345,69749.0,69735.0,0.014347]
[1771058727768,0.014346,69744.0,69735.0,0.028694]
[1771058727968,0.01444,69743.0,69736.0,0.35322157]
[1771058728271,0.014345,69745.0,69737.0,0.35312857]
[1771058728668,0.01444,69746.0,69740.0,0.014346]
[1771058728874,0.01444,69747.0,69742.0,0.014346]
[1771058729073,0.00029407,69753.0,69742.0,0.014346]
[1771058729273,0.014345,69749.0,69741.0,0.33878157]
[1771058729474,0.014345,69747.0,69739.0,0.01444]
[1771058729670,0.014345,69748.0,69739.0,0.01444]
[1771058729881,0.014345,69748.0,69739.0,0.028787]
[1771058730081,0.014345,69747.0,69739.0,0.028787]
[1771058730279,0.014345,69747.0,69739.0,0.01444]
[1771058731087,0.014344,69751.0,69742.0,0.014346]
[1771058731276,0.01444,69750.0,69743.0,0.014346]
[1771058731472,0.01444,69750.0,69744.0,0.014346]
[1771058731879,0.01444,69750.0,69743.0,0.028786]
[1771058732483,0.028784,69750.0,69743.0,0.01444]
[1771058732779,0.01444,69750.0,69743.0,0.01444]
[1771058732977,0.01463807,69753.0,69743.0,0.028786]
[1771058733179,0.01444,69752.0,69744.0,0.014345]
[1771058733786,0.01444,69752.0,69750.0,0.014344]
[1771058733983,0.14348,69768.0,69752.0,0.31951374]
[1771058734183,0.00058453,69767.0,69757.0,0.31951374]
[1771058734484,0.01444,69766.0,69759.0,0.014342]
[1771058734886,0.01444,69766.0,69758.0,0.014343]
[1771058735088,0.01444,69766.0,69759.0,0.014342]
[1771058735286,0.01444,69766.0,69760.0,0.014342]
[1771058736293,0.00058453,69767.0,69763.0,0.014342]
[1771058736483,0.01444,69768.0,69766.0,0.014341]
[1771058736791,0.14348,69784.0,69772.0,0.01434]
[1771058736990,0.14348,69784.0,69768.0,0.014341]
[1771058736991,0.014338,69779.0,69770.0,0.02878]
[1771058737293,0.01525524,69780.0,69767.0,0.014341]
[1771058737294,0.30345322,69774.0,69767.0,0.0090474]
[1771058737593,0.01434,69771.0,69767.0,0.0090474]
[1771058737889,0.31779222,69778.0,69768.0,0.01434]
[1771058738081,0.01444,69777.0,69767.0,0.014341]
[1771058738283,0.028779,69777.0,69767.0,0.014341]
[1771058738788,0.01444,69776.0,69768.0,0.014341]
[1771058738996,0.14348,69781.0,69768.0,0.014341]
[1771058738997,0.00088689,69782.0,69777.0,0.014339]
[1771058739185,0.014337,69784.0,69774.0,0.34829274]
[1771058739385,0.014337,69784.0,69775.0,0.014339]
[1771058739685,0.01444,69786.0,69774.0,0.34829274]
[1771058739888,0.72888623,69802.0,69774.0,0.34829274]
[1771058739889,0.00131661,69794.0,69779.0,0.30600199]
[1771058740087,0.00159212,69798.0,69789.0,0.014336]
[1771058740289,0.01034455,69806.0,69794.0,0.014335]
[1771058740585,0.014333,69803.0,69795.0,0.01444]
[1771058740792,0.014335,69798.0,69789.0,0.014336]
[1771058740991,0.014334,69801.0,69791.0,0.014336]
[1771058741285,0.014334,69801.0,69791.0,0.14348]
[1771058741286,0.014334,69800.0,69791.0,0.14348]
[1771058741486,0.014333,69806.0,69792.0,0.014336]
[1771058741796,0.014334,69799.0,69791.0,0.14348]
[1771058742088,0.014336,69791.0,69781.0,0.014338]
[1771058742292,0.014336,69792.0,69782.0,0.172218]
[1771058742482,0.014335,69795.0,69785.0,0.014337]
[1771058742782,0.14344,69803.0,69795.0,0.30600199]
[1771058742985,0.014334,69801.0,69795.0,0.01444]
[1771058743189,0.014333,69803.0,69795.0,0.01444]
[1771058743582,0.014333,69804.0,69795.0,0.01444]
[1771058743782,0.014332,69808.0,69795.0,0.32044199]
[1771058743982,0.34777235,69808.0,69795.0,0.000105]
[1771058744281,0.014334,69802.0,69795.0,0.000105]
[1771058744482,0.014334,69800.0,69796.0,0.000212]
[1771058744681,0.014334,69800.0,69794.0,0.01444]
[1771058745994,0.014334,69798.0,69794.0,0.01444]
[1771058746384,0.014334,69798.0,69792.0,0.01444]
[1771058746584,0.014335,69796.0,69789.0,0.01444]
[1771058746785,0.014335,69794.0,69789.0,0.01427803]
[1771058746993,0.014335,69796.0,69789.0,0.01427803]
[1771058747689,0.014335,69795.0,69789.0,0.01427803]
[1771058747894,0.01444,69796.0,69789.0,0.01427803]
[1771058748397,0.028775,69796.0,69789.0,0.01427803]
[1771058750899,0.014335,69796.0,69789.0,0.01427803]
[1771058751191,0.014337,69788.0,69778.0,0.028778]
[1771058751392,0.34788035,69789.0,69781.0,0.043012]
[1771058751594,0.028776,69789.0,69781.0,0.028674]
[1771058751900,0.34788035,69789.0,69781.0,0.028674]
[1771058752395,0.014338,69782.0,69781.0,0.028674]
[1771058752599,0.014338,69782.0,69775.0,0.01444]
[1771058752790,0.014339,69778.0,69767.0,0.0002]
[1771058752994,0.014339,69778.0,69769.0,0.15784]
[1771058753194,0.014338,69780.0,69770.0,0.01434]
[1771058753401,0.014339,69778.0,69770.0,0.028674]
[1771058753700,0.014339,69777.0,69770.0,0.028674]
[1771058753900,0.014339,69777.0,69765.0,0.0002]
[1771058753901,0.01434,69774.0,69765.0,0.0002]
[1771058754193,0.01444,69775.0,69771.0,0.01434]
[1771058754398,0.01444,69775.0,69770.0,0.01434]
[1771058754399,0.014337,69788.0,69777.0,0.014339]
[1771058754592,0.014337,69785.0,69776.0,0.014339]
[1771058754800,0.15784,69787.0,69776.0,0.014339]
[1771058754801,0.014337,69786.0,69776.0,0.014339]
[1771058755099,0.014336,69792.0,69780.0,0.32033999]
[1771058755298,0.014336,69789.0,69780.0,0.30600199]
[1771058755498,0.014337,69786.0,69777.0,0.014339]
[1771058755798,0.014337,69786.0,69780.0,0.028674]
[1771058756005,0.014338,69783.0,69776.0,0.01444]
[1771058756198,0.014337,69785.0,69776.0,0.028779]
[1771058756501,0.014337,69786.0,69776.0,0.028779]
[1771058756909,0.014337,69785.0,69776.0,0.01444]
[1771058757504,0.014337,69785.0,69776.0,0.028779]
[1771058757890,0.01444,69787.0,69776.0,0.01444]
[1771058758103,0.014335,69794.0,69781.0,0.014338]
[1771058758402,0.014335,69795.0,69786.0,0.014337]
[1771058758609,0.01444,69796.0,69787.0,0.014337]
[1771058758997,0.014334,69800.0,69789.0,0.32033799]
[1771058759195,0.014335,69796.0,69786.0,0.028777]
[1771058759401,0.014335,69798.0,69789.0,0.014336]
[1771058759704,0.028774,69799.0,69790.0,0.014336]
[1771058759897,0.014335,69797.0,69786.0,0.01444]
[1771058760201,0.014335,69793.0,69786.0,0.01444]
[1771058760398,0.014336,69792.0,69786.0,0.01444]
[1771058760599,0.014336,69792.0,69784.0,0.01444]
[1771058760600,0.014336,69789.0,69784.0,0.01444]
[1771058760794,0.014337,69788.0,69781.0,0.01444]
[1771058760995,0.028776,69790.0,69781.0,0.01444]
[1771058761192,0.014336,69789.0,69780.0,0.014338]
[1771058761392,0.014337,69788.0,69779.0,0.157738]
[1771058761605,0.014336,69789.0,69779.0,0.157738]
[1771058762505,0.014337,69788.0,69779.0,0.157738]
[1771058763003,0.028672,69789.0,69780.0,0.014338]
[1771058763203,0.014336,69789.0,69780.0,0.014338]
[1771058764115,0.014336,69792.0,69781.0,0.014338]
[1771058764407,0.01444,69791.0,69781.0,0.014338]
[1771058764604,0.014336,69789.0,69780.0,0.014338]
[1771058765195,0.32870434,69807.0,69786.0,0.28663122]
[1771058765506,0.014334,69798.0,69789.0,0.014336]
[1771058765692,0.01444,69797.0,69790.0,0.014336]
[1771058766712,0.01444,69796.0,69789.0,0.014336]
[1771058767404,0.014334,69799.0,69790.0,0.014336]
[1771058767602,0.01444,69798.0,69790.0,0.014336]
[1771058767805,0.01444,69798.0,69791.0,0.014336]
[1771058768400,0.01444,69798.0,69790.0,0.014336]
[1771058768600,0.01444,69798.0,69791.0,0.014336]
[1771058769598,0.01444,69798.0,69790.0,0.014336]
[1771058770009,0.01444,69798.0,69791.0,0.014336]
[1771058770206,0.01444,69797.0,69791.0,0.014336]
[1771058770407,0.01444,69797.0,69788.0,0.01444]
[1771058770711,0.014334,69801.0,69787.0,0.3051887]
[1771058770712,0.014334,69800.0,69790.0,0.014336]
[1771058770908,0.014333,69803.0,69790.0,0.29366054]
[1771058771107,0.01599399,69812.0,69798.0,0.19249729]
[1771058771404,0.014333,69805.0,69795.0,0.014335]
[1771058771610,0.01444,69805.0,69799.0,0.014334]
[1771058772005,0.01444,69805.0,69800.0,0.014334]
[1771058772812,0.01444,69805.0,69799.0,0.014334]
[1771058773705,0.01444,69805.0,69797.0,0.01444]
[1771058773906,0.32870434,69801.0,69788.0,0.014336]
[1771058774106,0.01444,69800.0,69788.0,0.028776]
[1771058774707,0.014335,69797.0,69788.0,0.028776]
[1771058774911,0.01444,69796.0,69788.0,0.028776]
[1771058775109,0.01444,69796.0,69782.0,0.01444]
[1771058775316,0.014337,69786.0,69776.0,0.15784]
[1771058775611,0.01444,69796.0,69776.0,0.15784]
[1771058775612,0.014332,69810.0,69782.0,0.17908442]
[1771058775812,0.00135399,69812.0,69776.0,0.15784]
[1771058775813,0.172173,69808.0,69795.0,0.014335]
[1771058776114,0.33012957,69809.0,69789.0,0.17914471]
[1771058776315,0.014335,69797.0,69789.0,0.17914471]
[1771058776509,0.014335,69798.0,69788.0,0.028776]
[1771058776510,0.028774,69799.0,69788.0,0.028776]
[1771058776908,0.01444,69799.0,69791.0,0.014336]
[1771058777114,0.028774,69799.0,69788.0,0.028776]
[1771058777306,0.014335,69797.0,69788.0,0.028776]
[1771058777707,0.014335,69798.0,69789.0,0.014336]
[1771058777914,0.014335,69797.0,69788.0,0.01444]
[1771058778112,0.014335,69794.0,69784.0,0.014337]
[1771058778315,0.01444,69793.0,69784.0,0.014337]
[1771058778611,0.043112,69793.0,69784.0,0.014337]
[1771058778812,0.014337,69788.0,69779.0,0.01444]
[1771058779016,0.014337,69788.0,69779.0,0.028778]
[1771058779209,0.014337,69787.0,69779.0,0.18316455]
[1771058779412,0.014336,69790.0,69781.0,0.014338]
[1771058780017,0.014336,69789.0,69780.0,0.014338]
[1771058780311,0.01444,69789.0,69779.0,0.01444]
[1771058780516,0.014337,69784.0,69779.0,0.01444]
[1771058780722,0.014337,69784.0,69773.0,0.16859196]
[1771058780723,0.01434,69772.0,69765.0,0.1434]
[1771058780915,0.014339,69775.0,69766.0,0.028781]
[1771058781226,0.014339,69774.0,69766.0,0.01444]
[1771058782013,0.014339,69775.0,69766.0,0.01444]
[1771058782217,0.01444,69776.0,69766.0,0.01444]
[1771058782413,0.01444,69775.0,69766.0,0.18209882]